Workbook

Sheet Sheet1
A1: 附件
A2: 2025年第四批（10-12月份）职业技能等级评价补贴资金申请明细表
A3: 单位名称 | B3: 认定批次 | C3: 认定群体 | D3: 认定工种 | E3: 人数 | F3: 级别 | H3: 补贴标准（元） | I3: 认定方式 | J3: 补贴比例 | K3: 补贴金额（元） | L3: 小计（元） | M3: 合计金额（元） | N3: 开户银行 | O3: 开户账号
A4: 济源技师学院 | B4: 第10批 | C4: 城镇登记失业人员 | D4: 中式烹调师 | E4: 25 | F4: 初级 | G4: 25 | H4: 200 | I4: 考核认定 | J4: 100% | K4: =J4*H4*G4 -> 5000 | L4: =K4 -> 5000 | M4: =SUM(L4:L4) -> 5000 | N4: 机构名称：济源技师学院 帐户名： 济源产城融合示范区财政局代管资金财政专户 开户银行：中国工商银行股份有限公司济源沁园路支行 | O4: 9558851702001828960
A5: 济源市京萌职业培训学校 | B5: 第2批 | C5: 城镇登记失业人员 | D5: 养老护理员 | E5: 23 | F5: 初级 | G5: 23 | H5: 200 | I5: 考核认定 | J5: 100% | K5: =J5*H5*G5 -> 4600 | L5: =K5 -> 4600 | M5: =SUM(L5:L30) -> 76600 | N5: 机构名称：济源市京萌职业培训学校 开户银行：中国建设银行股份有限公司 济源沁园路支行 | O5: 41050177283800000503
B6: 第3批 | C6: 城镇登记失业人员 | D6: 保健按摩师 | E6: 3 | F6: 初级 | G6: 3 | H6: 200 | I6: 考核认定 | J6: 100% | K6: 600 | L6: =K6 -> 600
B7: 第4批 | C7: 城镇登记失业人员 | D7: 母婴护理员 | E7: 21 | F7: 初级 | G7: 21 | H7: 200 | I7: 考核认定 | J7: 100% | K7: 4200 | L7: 4200
B8: 第5批 | C8: 城镇登记失业人员 | D8: 母婴护理员 | E8: 20 | F8: 初级 | G8: 20 | H8: 200 | I8: 考核认定 | J8: 100% | K8: 4000 | L8: 4000
B9: 第6批 | C9: 城镇登记失业人员 | D9: 脊柱按摩师 | E9: 35 | F9: 初级 | G9: 35 | H9: 200 | I9: 考核认定 | J9: 100% | K9: 7000 | L9: 7000
B10: 第8批 | C10: 城镇登记失业人员 | D10: 脊柱按摩师 | E10: 20 | F10: 初级 | G10: 20 | H10: 200 | I10: 考核认定 | J10: 100% | K10: 4000 | L10: 4000
B11: 第9批 | C11: 城镇登记失业人员 | D11: 脊柱按摩师 | E11: 19 | F11: 初级 | G11: 19 | H11: 200 | I11: 考核认定 | J11: 100% | K11: 3800 | L11: 3800
B12: 第10批 | C12: 城镇登记失业人员 | D12: 脊柱按摩师 | E12: 16 | F12: 初级 | G12: 16 | H12: 200 | I12: 考核认定 | J12: 100% | K12: =J12*H12*G12 -> 3200 | L12: =K12 -> 3200
B13: 第11批 | C13: 城镇登记失业人员、农村转移就业劳动者 | D13: 养老护理员 | E13: 28 | F13: 初级 | G13: 28 | H13: 200 | I13: 考核认定 | J13: 100% | K13: 5600 | L13: 5600
B14: 第12批 | C14: 城镇登记失业人员、农村转移就业劳动者 | D14: 养老护理员 | E14: 14 | F14: 初级 | G14: 14 | H14: 200 | I14: 考核认定 | J14: 100% | K14: 2800 | L14: 2800
B15: 第13批 | C15: 城镇登记失业人员、农村转移就业劳动者 | D15: 养老护理员 | E15: 10 | F15: 初级 | G15: 10 | H15: 200 | I15: 考核认定 | J15: 100% | K15: =J15*H15*G15 -> 2000 | L15: =K15 -> 2000
B16: 第14批 | C16: 城镇登记失业人员、农村转移就业劳动者 | D16: 养老护理员 | E16: 17 | F16: 初级 | G16: 17 | H16: 200 | I16: 考核认定 | J16: 100% | K16: 3400 | L16: 3400
B17: 第15批 | C17: 城镇登记失业人员、农村转移就业劳动者 | D17: 母婴护理员 | E17: 7 | F17: 初级 | G17: 7 | H17: 200 | I17: 考核认定 | J17: 100% | K17: 1400 | L17: 1400
B18: 第16批 | C18: 城镇登记失业人员、农村转移就业劳动者 | D18: 养老护理员 | E18: 11 | F18: 初级 | G18: 11 | H18: 200 | I18: 考核认定 | J18: 100% | K18: 2200 | L18: 2200
B19: 第17批 | C19: 农村转移就业劳动者 | D19: 养老护理员 | E19: 10 | F19: 初级 | G19: 10 | H19: 200 | I19: 考核认定 | J19: 100% | K19: 2000 | L19: 2000
B20: 第18批 | C20: 农村转移就业劳动者 | D20: 脊柱按摩师 | E20: 7 | F20: 初级 | G20: 7 | H20: 200 | I20: 考核认定 | J20: 100% | K20: =J20*H20*G20 -> 1400 | L20: =K20 -> 1400
B21: 第19批 | C21: 农村转移就业劳动者 | D21: 养老护理员 | E21: 7 | F21: 初级 | G21: 7 | H21: 200 | I21: 考核认定 | J21: 100% | K21: 1400 | L21: 1400
B22: 第20批 | C22: 农村转移就业劳动者 | D22: 母婴护理员 | E22: 15 | F22: 初级 | G22: 15 | H22: 200 | I22: 考核认定 | J22: 100% | K22: 3000 | L22: 3000
B23: 第21批 | C23: 农村转移就业劳动者 | D23: 养老护理员 | E23: 9 | F23: 初级 | G23: 9 | H23: 200 | I23: 考核认定 | J23: 100% | K23: 1800 | L23: 1800
B24: 第22批 | C24: 农村转移就业劳动者 | D24: 养老护理员 | E24: 9 | F24: 初级 | G24: 9 | H24: 200 | I24: 考核认定 | J24: 100% | K24: =J24*H24*G24 -> 1800 | L24: =K24 -> 1800
B25: 第23批 | C25: 城镇登记失业人员 | D25: 养老护理员 | E25: 33 | F25: 初级 | G25: 33 | H25: 200 | I25: 考核认定 | J25: 100% | K25: 6600 | L25: 6600
B26: 第24批 | C26: 农村转移就业劳动者 | D26: 母婴护理员 | E26: 8 | F26: 初级 | G26: 8 | H26: 200 | I26: 考核认定 | J26: 100% | K26: 1600 | L26: 1600
B27: 第25批 | C27: 农村转移就业劳动者 | D27: 养老护理员 | E27: 16 | F27: 初级 | G27: 16 | H27: 200 | I27: 考核认定 | J27: 100% | K27: 3200 | L27: 3200
B28: 第26批 | C28: 农村转移就业劳动者 | D28: 养老护理员 | E28: 14 | F28: 初级 | G28: 14 | H28: 200 | I28: 考核认定 | J28: 100% | K28: =J28*H28*G28 -> 2800 | L28: =K28 -> 2800
B29: 第27批 | C29: 农村转移就业劳动者 | D29: 养老护理员 | E29: 6 | F29: 初级 | G29: 6 | H29: 200 | I29: 考核认定 | J29: 100% | K29: 1200 | L29: 1200
B30: 第28批 | C30: 农村转移就业劳动者 | D30: 母婴护理员 | E30: 5 | F30: 初级 | G30: 5 | H30: 200 | I30: 考核认定 | J30: 100% | K30: 1000 | L30: 1000
A31: 济源市唯美绣美妆职业培训学校认定站 | B31: 第5批 | C31: 城镇登记失业人员、农村转移就业劳动者 | D31: 美容师 | E31: 12 | F31: 初级 | G31: 12 | H31: 200 | I31: 考核认定 | J31: 100% | K31: =J31*H31*G31 -> 2400 | L31: =K31 -> 2400 | M31: 10800 | N31: 机构名称：济源市唯美绣美妆职业培训学校 开户银行：农村商业银行东关分理处 | O31: 02003041800000047
B32: 第6批 | C32: 城镇登记失业人员、农村转移就业劳动者 | D32: 美容师 | E32: 10 | F32: 初级 | G32: 10 | H32: 200 | I32: 考核认定 | J32: 100% | K32: 2000 | L32: 2000
B33: 第7批 | C33: 城镇登记失业人员、农村转移就业劳动者 | D33: 美容师 | E33: 11 | F33: 初级 | G33: 11 | H33: 200 | I33: 考核认定 | J33: 100% | K33: 2200 | L33: 2200
B34: 第8批 | C34: 城镇登记失业人员、农村转移就业劳动者 | D34: 美容师 | E34: 12 | F34: 初级 | G34: 12 | H34: 200 | I34: 考核认定 | J34: 100% | K34: 2400 | L34: 2400
B35: 第9批 | C35: 城镇登记失业人员、农村转移就业劳动者 | D35: 美容师 | E35: 9 | F35: 高级 | G35: 9 | H35: 200 | I35: 考核认定 | J35: 100% | K35: =J35*H35*G35 -> 1800 | L35: =K35 -> 1800
A36: 济源市机械高级技工学校职业技能等级认定中心 | B36: 第1批 | C36: 农村转移就业劳动者 | D36: 保育师、电工、养老护理员 | E36: 5 | F36: 高级 | G36: 5 | H36: 280 | I36: 考核认定 | J36: 100% | K36: =J36*H36*G36 -> 1400 | L36: 1400 | M36: =SUM(L36:L40) -> 3800 | N36: 机构名称：济源市机械高级技工学校职业技能等级认定中心 帐户名：济源市机械高级技工学校 开户银行：中原银行济源分行 | O36: 411801010190019203
B37: 第2批 | C37: 农村转移就业劳动者 | D37: 电工 | E37: 5 | F37: 中级 | G37: 1 | H37: 240 | I37: 考核认定 | J37: 100% | K37: 240 | L37: =K37+K38 -> 1360
F38: 高级 | G38: 4 | H38: 280 | I38: 考核认定 | J38: 100% | K38: 1120
B39: 第3批 | C39: 农村转移就业劳动者 | D39: 电工 | E39: 4 | F39: 中级 | G39: 2 | H39: 240 | I39: 考核认定 | J39: 100% | K39: 480 | L39: =K39+K40 -> 1040
F40: 高级 | G40: 2 | H40: 280 | I40: 考核认定 | J40: 100% | K40: 560
A41: 济源市家家兴职业培训学校 | B41: 第8批 | C41: 城镇登记失业人员、农村转移就业劳动者 | D41: 中式烹调师 | E41: 9 | F41: 初级 | G41: 9 | H41: 200 | I41: 考核认定 | J41: 100% | K41: 1800 | L41: =K41 -> 1800 | M41: =SUM(L41:L45) -> 30800 | N41: 机构名称：济源市家家兴职业培训学校 开户银行：农商行济水支行 | O41: 02002011600000026
B42: 第9批 | C42: 城镇登记失业人员 | D42: 中式烹调师 | E42: 37 | F42: 初级 | G42: 37 | H42: 200 | I42: 考核认定 | J42: 100% | K42: 7400 | L42: =K42 -> 7400
B43: 第11批 | C43: 城镇登记失业人员 | D43: 保健按摩师 | E43: 36 | F43: 初级 | G43: 36 | H43: 200 | I43: 考核认定 | J43: 100% | K43: 7200 | L43: =K43 -> 7200
B44: 第12批 | C44: 城镇登记失业人员 | D44: 中式烹调师 | E44: 43 | F44: 初级 | G44: 43 | H44: 200 | I44: 考核认定 | J44: 100% | K44: 8600 | L44: =K44 -> 8600
B45: 第13批 | C45: 农村转移就业劳动者 | D45: 保健按摩师 | E45: 29 | F45: 初级 | G45: 29 | H45: 200 | I45: 考核认定 | J45: 100% | K45: 5800 | L45: =K45 -> 5800
A46: 共计： | B46: 40批 | D46: 8个工种 | E46: 630 | F46: 初级 | G46: 616 | K46: 123200 | L46: 127000 | M46: 127000
F47: 中级 | G47: 3 | K47: 720
F48: 高级 | G48: 11 | K48: 3080
